fUST/lending_fUST_20250203
["ID","MTS","AMOUNT","RATE_DAILY","PERIOD"]
[351341864,1738522248541,-538.603047,0.0001726,2]
[351341865,1738522248551,-151.0,0.0001726,2]
[351341866,1738522248562,-624.24561646,0.0001726,2]
[351341867,1738522248572,-151.0,0.0001726,2]
[351341868,1738522248690,-155.583411,0.0001726,2]
[351341869,1738522248701,-500.0,0.0001726,2]
[351341870,1738522248712,-155.583411,0.0001726,2]
[351341871,1738522248723,-500.0,0.0001726,2]
[351341872,1738522248734,-500.0,0.0001726,2]
[351341873,1738522248744,-500.0,0.0001726,2]
[351341874,1738522248755,-500.0,0.0001726,2]
[351341875,1738522248764,-500.0,0.0001726,2]
[351341876,1738522248774,-151.0,0.0001726,2]
[351341877,1738522248785,-151.0,0.0001726,2]
[351341878,1738522248795,-579.61,0.0001726,2]
[351341879,1738522248804,-538.62,0.0001726,2]
[351341880,1738522248814,-500.0,0.0001726,2]
[351341881,1738522248824,-151.0,0.0001726,2]
[351341882,1738522248838,-151.0,0.0001726,2]
[351341883,1738522248848,-500.0,0.0001726,2]
[351341884,1738522248859,-500.0,0.0001726,2]
[351341885,1738522248869,-151.0,0.0001726,2]
[351341886,1738522248881,-500.0,0.0001726,2]
[351341887,1738522248892,-757.31,0.0001726,2]
[351341888,1738522248910,-500.0,0.0001726,2]
[351341889,1738522248920,-478.77976361,0.0001726,2]
[351341890,1738522248942,-21.22023639,0.0001726,2]
[351341891,1738522248955,-1042.952198,0.0001726,2]
[351341892,1738522248967,-603.32,0.0001726,2]
[351341893,1738522248977,-663.7,0.0001726,2]
[351341894,1738522248988,-1042.952198,0.0001726,2]
[351341895,1738522248998,-151.0,0.0001726,2]
[351341896,1738522249008,-500.0,0.0001726,2]
[351341897,1738522249021,-500.0,0.0001726,2]
[351341898,1738522249031,-35.91324095,0.0001726,2]
[351341899,1738522249051,-464.08675905,0.0001726,2]
[351341900,1738522249061,-205.42018352,0.0001726,2]
[351341901,1738522249071,-500.0,0.0001726,2]
[351341902,1738522249083,-1566.64,0.0001726,2]
[351341903,1738522249095,-1224.68,0.0001726,2]
[351341904,1738522249106,-500.0,0.0001726,2]
[351341905,1738522249117,-1127.57,0.0001726,2]
[351341906,1738522249127,-526.98,0.0001726,2]
[351341907,1738522249138,-500.0,0.0001726,2]
[351341908,1738522249148,-825.27592426,0.0001726,2]
[351341909,1738522706510,-18008.755909,0.000178,15]
[351341910,1738522706535,-26991.244091,0.000178,15]
[351341911,1738522747657,-18008.755909,0.000178,15]
[351341912,1738522747677,-26991.244091,0.000178,15]
[351341922,1738522997731,1797.50123453,0.00015011,2]
[351342009,1738523436873,-337.59898012,0.00015753,2]
[351342011,1738523436886,-162.40101988,0.00015753,2]
[351342012,1738523436896,-153.0,0.00016074,2]
[351342013,1738523436906,-153.0,0.00016074,2]
[351342014,1738523436915,-153.0,0.00016074,2]
[351342015,1738523436925,-225.67917697,0.00016338,2]
[351342016,1738523436938,-707.06980315,0.000164,2]
[351342017,1738523436950,-2292.93019685,0.000164,2]
[351342018,1738523436959,-3000.0,0.0001641,2]
[351342019,1738523436968,-300.0,0.00016419,2]
[351342020,1738523436978,-3000.0,0.0001642,2]
[351342021,1738523436987,-3000.0,0.0001643,2]
[351342022,1738523436997,-166.11732453,0.00016437,2]
[351342023,1738523437006,-500.0,0.00016438,2]
[351342024,1738523437016,-124.78996063,0.00016438,2]
[351342025,1738523437027,-375.21003937,0.00016438,2]
[351342026,1738523437037,-500.0,0.00016438,2]
[351342027,1738523437046,-500.0,0.00016438,2]
[351342028,1738523437055,-500.0,0.00016438,2]
[351342029,1738523437065,-500.0,0.00016438,2]
[351342030,1738523437075,-500.0,0.00016438,2]
[351342031,1738523437085,-49.38996062,0.00016438,2]
[351342032,1738523437097,-146.60021404,0.00016438,2]
[351342033,1738523437107,-500.0,0.00016438,2]
[351342034,1738523437123,-500.0,0.00016438,2]
[351342035,1738523437133,-500.0,0.00016438,2]
[351342036,1738523437144,-500.0,0.00016438,2]
[351342037,1738523437155,-500.0,0.00016438,2]
[351342038,1738523437166,-500.0,0.00016438,2]
[351342041,1738523437179,-503.19725641,0.00016438,2]
[351342043,1738523437191,-500.0,0.00016438,2]
[351342045,1738523437204,-500.0,0.00016438,2]
[351342047,1738523437214,-500.0,0.00016438,2]
[351342048,1738523437225,-500.0,0.00016438,2]
[351342049,1738523437235,-428.10145528,0.00016438,2]
[351342051,1738523437247,-500.0,0.00016438,2]
[351342053,1738523437257,-500.0,0.00016438,2]
[351342054,1738523437267,-500.0,0.00016438,2]
[351342055,1738523437281,-500.0,0.00016438,2]
[351342056,1738523437291,-517.52887381,0.00016438,2]
[351342057,1738523437301,-500.0,0.00016438,2]
[351342058,1738523437311,-102.49998577,0.00016438,2]
[351342059,1738523437324,-523.04241775,0.00016438,2]
[351342060,1738523437334,-500.0,0.00016438,2]
[351342061,1738523437344,-500.0,0.00016438,2]
[351342062,1738523437354,-452.49536933,0.00016438,2]
[351342063,1738523437366,-47.50463067,0.00016438,2]
[351342064,1738523437376,-494.86735346,0.00016438,2]
[351342065,1738523437391,-5.13264654,0.00016438,2]
[351342066,1738523437401,-500.0,0.00016438,2]
[351342067,1738523437410,-235.84802174,0.00016438,2]
[351342068,1738523437421,-264.15197826,0.00016438,2]
[351342069,1738523437437,-225.89607735,0.00016438,2]
[351342070,1738523437449,-276.24646001,0.00016438,2]
[351342071,1738523437459,-412.01108078,0.00016438,2]
[351342072,1738523437470,-500.0,0.00016438,2]
[351342073,1738523437482,-500.0,0.00016438,2]
[351342074,1738523437492,-500.0,0.00016438,2]
[351342075,1738523437504,-502.97198114,0.00016438,2]
[351342076,1738523437514,-500.0,0.00016438,2]
[351342077,1738523437524,-500.0,0.00016438,2]
[351342078,1738523437535,-500.0,0.00016438,2]
[351342080,1738523437545,-500.0,0.00016438,2]
[351342081,1738523437555,-348.26007941,0.00016438,2]
[351342082,1738523437565,-500.0,0.00016438,2]
[351342083,1738523437575,-500.0,0.00016438,2]
[351342084,1738523437585,-500.0,0.00016438,2]
[351342085,1738523437595,-500.0,0.00016438,2]
[351342086,1738523437605,-503.90126389,0.00016438,2]
[351342087,1738523437615,-500.0,0.00016438,2]
[351342088,1738523437624,-500.0,0.00016438,2]
[351342089,1738523437634,-500.0,0.00016438,2]
[351342091,1738523437644,-500.0,0.00016438,2]
[351342093,1738523437653,-427.94319134,0.00016438,2]
[351342095,1738523437663,-500.0,0.00016438,2]
[351342097,1738523437672,-500.0,0.00016438,2]
[351342099,1738523437687,-500.0,0.00016438,2]
[351342100,1738523437697,-500.0,0.00016438,2]
[351342101,1738523437707,-500.0,0.00016438,2]
[351342103,1738523437716,-500.0,0.00016438,2]
[351342104,1738523437725,-500.0,0.00016438,2]
[351342106,1738523437735,-500.0,0.00016438,2]
[351342107,1738523437744,-606.38337412,0.00016438,2]
[351342108,1738523437753,-500.0,0.00016438,2]
[351342110,1738523437762,-500.0,0.00016438,2]
[351342112,1738523437771,-500.0,0.00016438,2]
[351342113,1738523437781,-358.57398539,0.00016438,2]
[351342114,1738523437791,-500.0,0.00016438,2]
[351342115,1738523437800,-500.0,0.00016438,2]
[351342117,1738523437810,-500.0,0.00016438,2]
[351342119,1738523437819,-500.0,0.00016438,2]
[351342121,1738523437829,-500.0,0.00016438,2]
[351342122,1738523437838,-500.0,0.00016438,2]
[351342123,1738523437848,-500.0,0.00016438,2]
[351342124,1738523437857,-500.0,0.00016438,2]
[351342125,1738523437867,-500.0,0.00016438,2]
[351342126,1738523437876,-500.0,0.00016438,2]
[351342127,1738523437886,-500.0,0.00016438,2]
[351342129,1738523437896,-500.0,0.00016438,2]
[351342131,1738523437906,-500.0,0.00016438,2]
[351342133,1738523437915,-500.0,0.00016438,2]
[351342135,1738523437924,-500.0,0.00016438,2]
[351342136,1738523437939,-500.0,0.00016438,2]
[351342138,1738523437948,-500.0,0.00016438,2]
[351342140,1738523437957,-500.0,0.00016438,2]
[351342141,1738523437966,-500.0,0.00016438,2]
[351342143,1738523437975,-500.0,0.00016438,2]
[351342145,1738523437985,-501.40668572,0.00016438,2]
[351342146,1738523437995,-500.0,0.00016438,2]
[351342147,1738523438005,-500.0,0.00016438,2]
[351342149,1738523438015,-500.0,0.00016438,2]
[351342150,1738523438025,-500.0,0.00016438,2]
[351342151,1738523438034,-502.10760146,0.00016438,2]
[351342152,1738523438044,-500.0,0.00016438,2]
[351342153,1738523438054,-501.63561331,0.00016438,2]
[351342154,1738523438063,-476.00108259,0.00016438,2]
[351342156,1738523438072,-500.0,0.00016438,2]
[351342158,1738523438082,-500.0,0.00016438,2]
[351342160,1738523438092,-500.0,0.00016438,2]
[351342161,1738523438101,-503.4158796,0.00016438,2]
[351342163,1738523438111,-497.31558103,0.00016438,2]
[351342164,1738523438121,-500.0,0.00016438,2]
[351342165,1738523438130,-500.0,0.00016438,2]
[351342166,1738523438139,-500.0,0.00016438,2]
[351342167,1738523438149,-500.0,0.00016438,2]
[351342168,1738523438158,-500.0,0.00016438,2]
[351342169,1738523438167,-500.0,0.00016438,2]
[351342170,1738523438181,-500.0,0.00016438,2]
[351342171,1738523438190,-253.34170156,0.00016438,2]
[351342173,1738523438199,-500.0,0.00016438,2]
[351342175,1738523438210,-500.0,0.00016438,2]
[351342176,1738523438219,-500.0,0.00016438,2]
[351342177,1738523438229,-500.0,0.00016438,2]
[351342178,1738523438238,-297.46369107,0.00016438,2]
[351342179,1738523438247,-500.0,0.00016438,2]
[351342180,1738523438257,-500.0,0.00016438,2]
[351342181,1738523438267,-500.0,0.00016438,2]
[351342182,1738523438277,-509.0451226,0.00016438,2]
[351342183,1738523438287,-500.0,0.00016438,2]
[351342184,1738523438297,-401.64962618,0.00016438,2]
[351342185,1738523438306,-500.0,0.00016438,2]
[351342186,1738523438315,-500.0,0.00016438,2]
[351342187,1738523438325,-500.0,0.00016438,2]
[351342188,1738523438335,-500.0,0.00016438,2]
[351342189,1738523438344,-500.0,0.00016438,2]
[351342190,1738523438354,-500.0,0.00016438,2]
[351342191,1738523438363,-500.0,0.00016438,2]
[351342192,1738523438373,-500.0,0.00016438,2]
[351342194,1738523438382,-500.0,0.00016438,2]
[351342195,1738523438391,-500.0,0.00016438,2]
[351342197,1738523438401,-200.0,0.00016438,2]
[351342201,1738523438512,-500.0,0.00016438,2]
[351342202,1738523438523,-500.0,0.00016438,2]
[351342203,1738523438534,-500.0,0.00016438,2]
[351342204,1738523438544,-500.0,0.00016438,2]
[351342205,1738523438553,-500.0,0.00016438,2]
[351342206,1738523438563,-500.0,0.00016438,2]
[351342207,1738523438573,-500.0,0.00016438,2]
[351342208,1738523438582,-500.0,0.00016438,2]
[351342209,1738523438591,-273.51567268,0.00016438,2]
[351342210,1738523438601,-500.0,0.00016438,2]
[351342211,1738523438611,-662.89,0.00016438,2]
[351342212,1738523438620,-500.0,0.00016438,2]
[351342213,1738523438629,-500.0,0.00016438,2]
[351342214,1738523438639,-500.0,0.00016438,2]
[351342215,1738523438649,-500.0,0.00016438,2]
[351342216,1738523438658,-187.28768279,0.00016438,2]
[351342217,1738523438667,-500.0,0.00016438,2]
[351342218,1738523438682,-500.0,0.00016438,2]
[351342219,1738523438692,-500.0,0.00016438,2]
[351342220,1738523438702,-500.0,0.00016438,2]
[351342221,1738523438713,-500.0,0.00016438,2]
[351342222,1738523438722,-500.0,0.00016438,2]
[351342223,1738523438732,-500.0,0.00016438,2]
[351342224,1738523438742,-575.77,0.00016438,2]
[351342225,1738523438752,-500.0,0.00016438,2]
[351342226,1738523438761,-500.0,0.00016438,2]
[351342227,1738523438771,-500.0,0.00016438,2]
[351342228,1738523438781,-500.0,0.00016438,2]
[351342229,1738523438791,-500.0,0.00016438,2]
[351342230,1738523438801,-500.0,0.00016438,2]
[351342231,1738523438811,-500.0,0.00016438,2]
[351342232,1738523438821,-500.0,0.00016438,2]
[351342233,1738523438830,-500.0,0.00016438,2]
[351342234,1738523438840,-500.0,0.00016438,2]
[351342235,1738523438849,-1715.93,0.00016438,2]
[351342236,1738523438859,-500.0,0.00016438,2]
[351342237,1738523438869,-500.0,0.00016438,2]
[351342238,1738523438878,-500.0,0.00016438,2]
[351342239,1738523438887,-1846.93,0.00016438,2]
[351342240,1738523438897,-500.0,0.00016438,2]
[351342241,1738523438907,-500.0,0.00016438,2]
[351342242,1738523438917,-500.0,0.00016438,2]
[351342243,1738523438930,-500.0,0.00016438,2]
[351342244,1738523438940,-500.0,0.00016438,2]
[351342245,1738523438951,-866.61,0.00016438,2]
[351342246,1738523438960,-500.0,0.00016438,2]
[351342247,1738523438970,-500.0,0.00016438,2]
[351342248,1738523438980,-500.0,0.00016438,2]
[351342249,1738523438989,-500.0,0.00016438,2]
[351342250,1738523438999,-500.0,0.00016438,2]
[351342251,1738523439009,-500.0,0.00016438,2]
[351342252,1738523439019,-500.0,0.00016438,2]
[351342253,1738523439032,-500.0,0.00016438,2]
[351342254,1738523439042,-500.0,0.00016438,2]
[351342255,1738523439052,-500.0,0.00016438,2]
[351342256,1738523439062,-500.0,0.00016438,2]
[351342257,1738523439071,-500.0,0.00016438,2]
[351342258,1738523439082,-500.0,0.00016438,2]
[351342259,1738523439092,-939.35,0.00016438,2]
[351342260,1738523439118,-500.0,0.00016438,2]
[351342261,1738523439128,-500.0,0.00016438,2]
[351342262,1738523439137,-3004.58,0.00016438,2]
[351342263,1738523439146,-500.0,0.00016438,2]
[351342264,1738523439156,-500.0,0.00016438,2]
[351342265,1738523439166,-500.0,0.00016438,2]
[351342266,1738523439175,-500.0,0.00016438,2]
[351342267,1738523439190,-500.0,0.00016438,2]
[351342268,1738523439200,-500.0,0.00016438,2]
[351342269,1738523439211,-1226.85,0.00016438,2]
[351342270,1738523439221,-1378.54,0.00016438,2]
[351342271,1738523439230,-500.0,0.00016438,2]
[351342272,1738523439240,-500.0,0.00016438,2]
[351342273,1738523439251,-500.0,0.00016438,2]
[351342274,1738523439261,-500.0,0.00016438,2]
[351342275,1738523439270,-2220.36,0.00016438,2]
[351342276,1738523439279,-500.0,0.00016438,2]
[351342277,1738523439289,-500.0,0.00016438,2]
[351342278,1738523439300,-500.0,0.00016438,2]
[351342279,1738523439310,-500.0,0.00016438,2]
[351342280,1738523439320,-500.0,0.00016438,2]
[351342281,1738523439329,-500.0,0.00016438,2]
[351342282,1738523439340,-579.76,0.00016438,2]
[351342283,1738523439349,-500.0,0.00016438,2]
[351342284,1738523439359,-500.0,0.00016438,2]
[351342285,1738523439369,-409.05061874,0.00016438,2]
[351342286,1738523439379,-500.0,0.00016438,2]
[351342287,1738523439388,-531.11,0.00016438,2]
[351342288,1738523439398,-500.0,0.00016438,2]
[351342289,1738523439408,-230.94,0.00016438,2]
[351342290,1738523439418,-500.0,0.00016438,2]
[351342291,1738523439435,-1762.0,0.00016438,2]
[351342292,1738523439445,-500.0,0.00016438,2]
[351342293,1738523439455,-500.0,0.00016438,2]
[351342294,1738523439465,-500.0,0.00016438,2]
[351342295,1738523439475,-500.0,0.00016438,2]
[351342296,1738523439485,-18401.63,0.00016438,2]
[351342297,1738523439495,-500.0,0.00016438,2]
[351342298,1738523439505,-500.0,0.00016438,2]
[351342299,1738523439515,-1005.75,0.00016438,2]
[351342300,1738523439525,-500.0,0.00016438,2]
[351342301,1738523439535,-830.26,0.00016438,2]
[351342302,1738523439545,-1569.05,0.00016438,2]
[351342303,1738523439555,-712.52,0.00016438,2]
[351342304,1738523439564,-570.6875927,0.00016438,2]
[351342305,1738523439573,-192.25846743,0.00016438,2]
[351342306,1738523439583,-500.0,0.00016438,2]
[351342307,1738523439593,-568.31187269,0.00016438,2]
[351342309,1738523439603,-1000.0,0.00016438,7]
[351342310,1738523439612,-500.0,0.00016438,2]
[351342311,1738523439622,-500.0,0.00016438,2]
[351342312,1738523439631,-500.0,0.00016438,2]
[351342313,1738523439641,-500.0,0.00016438,2]
[351342314,1738523439651,-501.73,0.00016438,2]
[351342315,1738523439661,-500.0,0.00016438,2]
[351342317,1738523439671,-500.0,0.00016438,2]
[351342319,1738523439687,-500.0,0.00016438,2]
[351342322,1738523439697,-500.0,0.00016438,2]
[351342324,1738523439707,-1518.04,0.00016438,2]
[351342326,1738523439716,-500.0,0.00016438,2]
[351342328,1738523439726,-500.0,0.00016438,2]
[351342329,1738523439736,-8061.72,0.00016438,2]
[351342330,1738523439746,-500.0,0.00016438,2]
[351342332,1738523439755,-500.0,0.00016438,2]
[351342334,1738523439765,-500.0,0.00016438,2]
[351342336,1738523439775,-500.0,0.00016438,2]
[351342338,1738523439784,-500.0,0.00016438,2]
[351342340,1738523439794,-668.48,0.00016438,2]
[351342341,1738523439804,-512.60241157,0.00016438,2]
[351342342,1738523439814,-606.42,0.00016438,2]
[351342344,1738523439825,-500.0,0.00016438,2]
[351342346,1738523439835,-506.96306323,0.00016438,2]
[351342347,1738523439845,-500.0,0.00016438,2]
[351342349,1738523439854,-500.0,0.00016438,2]
[351342351,1738523439864,-3980.39,0.00016438,2]
[351342353,1738523439873,-752.11,0.00016438,2]
[351342355,1738523439882,-1637.71,0.00016438,2]
[351342357,1738523439892,-500.0,0.00016438,2]
[351342358,1738523439902,-500.0,0.00016438,2]
[351342359,1738523439911,-500.0,0.00016438,2]
[351342360,1738523439921,-500.0,0.00016438,2]
[351342361,1738523439938,-500.0,0.00016438,2]
[351342362,1738523439949,-3000.0,0.0001644,2]
[351342363,1738523439959,-3000.0,0.0001645,2]
[351342364,1738523439969,-3000.0,0.0001646,2]
[351342365,1738523439979,-3000.0,0.0001647,2]
[351342366,1738523439990,-483.93865186,0.00016473,2]
[351342367,1738523439999,-500.0,0.00016473,2]
[351342368,1738523440009,-500.0,0.00016473,2]
[351342369,1738523440019,-500.0,0.00016473,2]
[351342370,1738523440029,-3000.0,0.0001648,2]
[351342371,1738523440039,-3000.0,0.0001649,2]
[351342372,1738523440050,-3000.0,0.000165,2]
[351342373,1738523440060,-3000.0,0.0001651,2]
[351342374,1738523440070,-3000.0,0.0001652,2]
[351342375,1738523440079,-208.38477732,0.00016529,2]
[351342376,1738523440089,-500.0,0.00016529,2]
[351342377,1738523440099,-207.41243426,0.00016529,2]
[351342378,1738523440109,-3000.0,0.0001653,2]
[351342379,1738523440119,-3000.0,0.0001654,2]
[351342380,1738523440129,-3000.0,0.0001655,2]
[351342381,1738523440138,-3000.0,0.0001656,2]
[351342382,1738523440148,-225.67917694,0.00016561,2]
[351342383,1738523440158,-3000.0,0.0001657,2]
[351342384,1738523440168,-500.0,0.00016575,2]
[351342385,1738523440183,-500.0,0.00016575,2]
[351342386,1738523440193,-500.0,0.00016575,2]
[351342387,1738523440206,-500.0,0.00016575,2]
[351342388,1738523440216,-504.13369875,0.00016575,2]
[351342389,1738523440225,-500.0,0.00016575,2]
[351342390,1738523440235,-500.0,0.00016575,2]
[351342391,1738523440244,-500.0,0.00016575,2]
[351342392,1738523440256,-500.0,0.00016575,2]
[351342393,1738523440266,-500.0,0.00016575,2]
[351342394,1738523440276,-500.0,0.00016575,2]
[351342395,1738523440286,-500.0,0.00016575,2]
[351342396,1738523440297,-500.0,0.00016575,2]
[351342397,1738523440307,-500.0,0.00016575,2]
[351342398,1738523440318,-500.0,0.00016575,2]
[351342399,1738523440329,-500.0,0.00016575,2]
[351342400,1738523440339,-559.57522098,0.00016575,2]
[351342401,1738523440349,-500.0,0.00016575,2]
[351342402,1738523440359,-500.0,0.00016575,2]
[351342403,1738523440370,-500.0,0.00016575,2]
[351342404,1738523440381,-500.0,0.00016575,2]
[351342405,1738523440391,-500.0,0.00016575,2]
[351342406,1738523440401,-500.0,0.00016575,2]
[351342407,1738523440411,-500.0,0.00016575,2]
[351342408,1738523440422,-500.0,0.00016575,2]
[351342409,1738523440437,-500.0,0.00016575,2]
[351342410,1738523440447,-500.0,0.00016575,2]
[351342411,1738523440457,-500.0,0.00016575,2]
[351342412,1738523440467,-500.0,0.00016575,2]
[351342413,1738523440476,-500.0,0.00016575,2]
[351342414,1738523440486,-500.0,0.00016575,2]
[351342415,1738523440495,-500.0,0.00016575,2]
[351342416,1738523440505,-500.0,0.00016575,2]
[351342418,1738523440515,-500.0,0.00016575,2]
[351342420,1738523440525,-500.0,0.00016575,2]
[351342421,1738523440535,-500.0,0.00016575,2]
[351342422,1738523440544,-500.0,0.00016575,2]
[351342423,1738523440554,-500.0,0.00016575,2]
[351342427,1738523440652,-500.0,0.00016575,2]
[351342428,1738523440662,-500.0,0.00016575,2]
[351342429,1738523440672,-445.64791625,0.00016575,2]
[351342430,1738523440688,-493.58548819,0.00016575,2]
[351342432,1738523440698,-500.0,0.00016575,2]
[351342434,1738523440708,-500.0,0.00016575,2]
[351342435,1738523440717,-500.0,0.00016575,2]
[351342436,1738523440728,-500.0,0.00016575,2]
[351342438,1738523440737,-504.67454969,0.00016575,2]
[351342439,1738523440747,-500.0,0.00016575,2]
[351342440,1738523440757,-501.56075748,0.00016575,2]
[351342441,1738523440767,-258.29894845,0.00016575,2]
[351342442,1738523440777,-500.0,0.00016575,2]
[351342444,1738523440787,-561.64264187,0.00016575,2]
[351342446,1738523440796,-500.0,0.00016575,2]
[351342448,1738523440806,-378.38398132,0.00016575,2]
[351342450,1738523440815,-500.0,0.00016575,2]
[351342452,1738523440826,-500.0,0.00016575,2]
[351342453,1738523440835,-455.96,0.00016575,2]
[351342455,1738523440846,-500.0,0.00016575,2]
[351342456,1738523440856,-500.0,0.00016575,2]
[351342458,1738523440867,-500.0,0.00016575,2]
[351342460,1738523440881,-500.0,0.00016575,2]
[351342462,1738523440891,-237.15453713,0.00016575,2]
[351342463,1738523440901,-500.0,0.00016575,2]
[351342464,1738523440912,-500.0,0.00016575,2]
[351342465,1738523440923,-500.0,0.00016575,2]
[351342466,1738523440941,-500.0,0.00016575,2]
[351342467,1738523440952,-500.0,0.00016575,2]
[351342468,1738523440963,-509.19385276,0.00016575,2]
[351342469,1738523440973,-500.0,0.00016575,2]
[351342470,1738523440984,-500.0,0.00016575,2]
[351342471,1738523440999,-500.0,0.00016575,2]
[351342472,1738523441009,-500.0,0.00016575,2]
[351342473,1738523441019,-500.0,0.00016575,2]
[351342474,1738523441029,-500.0,0.00016575,2]
[351342475,1738523441038,-500.0,0.00016575,2]
[351342476,1738523441048,-200.0,0.00016575,2]
[351342477,1738523441058,-506.95022981,0.00016575,2]
[351342478,1738523441067,-500.0,0.00016575,2]
[351342479,1738523441077,-500.0,0.00016575,2]
[351342480,1738523441087,-500.0,0.00016575,2]
[351342481,1738523441097,-500.0,0.00016575,2]
[351342482,1738523441107,-500.0,0.00016575,2]
[351342483,1738523441117,-271.42458975,0.00016575,2]
[351342484,1738523441127,-500.0,0.00016575,2]
[351342485,1738523441136,-662.89,0.00016575,2]
[351342486,1738523441146,-500.0,0.00016575,2]
[351342487,1738523441156,-500.0,0.00016575,2]
[351342488,1738523441166,-500.0,0.00016575,2]
[351342489,1738523441177,-500.0,0.00016575,2]
[351342490,1738523441191,-500.0,0.00016575,2]
[351342491,1738523441202,-500.0,0.00016575,2]
[351342492,1738523441214,-500.0,0.00016575,2]
[351342493,1738523441224,-500.0,0.00016575,2]
[351342494,1738523441234,-500.0,0.00016575,2]
[351342495,1738523441243,-575.77,0.00016575,2]
[351342496,1738523441254,-500.0,0.00016575,2]
[351342497,1738523441264,-500.0,0.00016575,2]
[351342498,1738523441273,-500.0,0.00016575,2]
[351342499,1738523441286,-500.0,0.00016575,2]
[351342500,1738523441297,-500.0,0.00016575,2]
[351342501,1738523441308,-500.0,0.00016575,2]
[351342502,1738523441318,-500.0,0.00016575,2]
[351342503,1738523441328,-500.0,0.00016575,2]
[351342504,1738523441338,-500.0,0.00016575,2]
[351342505,1738523441347,-1715.93,0.00016575,2]
[351342506,1738523441357,-500.0,0.00016575,2]
[351342507,1738523441367,-602.05126369,0.00016575,2]
[351342508,1738523441377,-500.0,0.00016575,2]
[351342509,1738523441386,-1846.93,0.00016575,2]
[351342510,1738523441395,-500.0,0.00016575,2]
[351342511,1738523441406,-500.0,0.00016575,2]
[351342512,1738523441415,-500.0,0.00016575,2]
[351342513,1738523441424,-500.0,0.00016575,2]
[351342514,1738523441439,-866.61,0.00016575,2]
[351342515,1738523441450,-500.0,0.00016575,2]
[351342516,1738523441460,-636.72861403,0.00016575,2]
[351342517,1738523441469,-500.0,0.00016575,2]
[351342518,1738523441479,-500.0,0.00016575,2]
[351342519,1738523441489,-500.0,0.00016575,2]
[351342520,1738523441499,-500.0,0.00016575,2]
[351342521,1738523441508,-500.0,0.00016575,2]
[351342522,1738523441518,-500.0,0.00016575,2]
[351342523,1738523441528,-939.35,0.00016575,2]
[351342524,1738523441539,-500.0,0.00016575,2]
[351342525,1738523441548,-500.0,0.00016575,2]
[351342526,1738523441558,-3004.58,0.00016575,2]
[351342527,1738523441567,-500.0,0.00016575,2]
[351342528,1738523441577,-500.0,0.00016575,2]
[351342529,1738523441587,-500.0,0.00016575,2]
[351342530,1738523441596,-500.0,0.00016575,2]
[351342531,1738523441606,-1226.85,0.00016575,2]
[351342532,1738523441616,-1378.54,0.00016575,2]
[351342533,1738523441626,-500.0,0.00016575,2]
[351342534,1738523441635,-500.0,0.00016575,2]
[351342535,1738523441644,-500.0,0.00016575,2]
[351342536,1738523441654,-2220.36,0.00016575,2]